fUST/lending_fUST_20250713
["ID","MTS","AMOUNT","RATE_DAILY","PERIOD"]
[371689462,1752388238023,-500.0,0.00017346,2]
[371689463,1752388238033,-151.0,0.00017346,2]
[371689464,1752388238043,-151.0,0.00017346,2]
[371689465,1752388238052,-500.0,0.00017346,2]
[371689466,1752388238063,-218.29810371,0.00017346,2]
[371689467,1752388238072,-198.0,0.00017346,2]
[371689468,1752388238082,-198.28087458,0.00017346,2]
[371689469,1752388238093,-198.0,0.00017346,2]
[371689470,1752388238102,-151.0,0.00017346,2]
[371689471,1752388238111,-151.0,0.00017346,2]
[371689472,1752388238120,-151.0,0.00017346,2]
[371689473,1752388238129,-1147.0,0.00017346,2]
[371689474,1752388238139,-151.0,0.00017346,2]
[371689475,1752388238148,-151.0,0.00017346,2]
[371689476,1752388238158,-151.0,0.00017346,2]
[371689477,1752388238168,-151.0,0.00017346,2]
[371689478,1752388238178,-151.0,0.00017374,2]
[371689479,1752388238188,-151.0,0.00017374,2]
[371689480,1752388238199,-500.0,0.00017374,2]
[371689481,1752388238210,-285.09662853,0.00017374,2]
[371689482,1752388238221,-151.04844108,0.00017374,2]
[371689483,1752388238231,-151.40027252,0.00017374,2]
[371689484,1752388238241,-1147.0,0.00017374,2]
[371689485,1752388238252,-151.0,0.00017401,2]
[371689486,1752388238262,-151.0,0.00017401,2]
[371689487,1752388238272,-500.0,0.00017401,2]
[371689488,1752388238283,-1147.0,0.00017401,2]
[371689489,1752388238294,-238.558168,0.00017407,2]
[371689490,1752388238306,-1000.0,0.00017421,2]
[371689491,1752388238317,-1000.0,0.00017421,2]
[371689492,1752388238327,-1004.71149929,0.00017421,2]
[371689493,1752388238336,-1000.0,0.00017421,2]
[371689494,1752388238347,-513.72158742,0.00017421,2]
[371689495,1752388238357,-878.38,0.00017421,2]
[371689496,1752388238368,-460.0,0.00017421,2]
[371689497,1752388238379,-460.0,0.00017421,2]
[371689498,1752388238389,-460.0,0.00017421,2]
[371689499,1752388238399,-809.52,0.00017421,2]
[371689500,1752388238409,-2471.46,0.00017421,2]
[371689501,1752388238420,-460.0,0.00017421,2]
[371689502,1752388238431,-460.0,0.00017421,2]
[371689503,1752388238440,-871.59,0.00017421,2]
[371689504,1752388238450,-1436.67,0.00017421,2]
[371689505,1752388238460,-460.0,0.00017421,2]
[371689506,1752388238470,-460.0,0.00017421,2]
[371689507,1752388238480,-460.0,0.00017421,2]
[371689508,1752388238490,-941.99,0.00017421,2]
[371689509,1752388238500,-795.45,0.00017421,2]
[371689510,1752388238509,-460.0,0.00017421,2]
[371689512,1752388238519,-460.0,0.00017421,2]
[371689514,1752388238528,-466.39004785,0.00017422,2]
[371689516,1752388238538,-460.0,0.00017422,2]
[371689518,1752388238548,-460.0,0.00017422,2]
[371689521,1752388238557,-504.3,0.00017422,2]
[371689522,1752388238567,-460.0,0.00017422,2]
[371689525,1752388238576,-460.0,0.00017422,2]
[371689526,1752388238586,-460.0,0.00017422,2]
[371689527,1752388238595,-460.0,0.00017422,2]
[371689528,1752388238605,-619.76,0.00017422,2]
[371689529,1752388238614,-460.0,0.00017422,2]
[371689530,1752388238624,-460.0,0.00017422,2]
[371689531,1752388238633,-489.43,0.00017422,2]
[371689532,1752388238643,-1418.37,0.00017422,2]
[371689533,1752388238652,-367.44264871,0.00017422,2]
[371689534,1752388238662,-460.0,0.00017422,2]
[371689536,1752388238671,-460.0,0.00017422,2]
[371689538,1752388238681,-423.43034304,0.00017422,2]
[371689541,1752388238690,-460.0,0.00017422,2]
[371689543,1752388238702,-878.38,0.00017422,2]
[371689545,1752388238711,-460.0,0.00017422,2]
[371689547,1752388238723,-838.66,0.00017422,2]
[371689549,1752388238732,-460.0,0.00017422,2]
[371689550,1752388238741,-460.5,0.00017422,2]
[371689551,1752388238749,-2789.97,0.00017422,2]
[371689552,1752388238758,-460.0,0.00017422,2]
[371689553,1752388238767,-667.51,0.00017422,2]
[371689554,1752388238776,-460.0,0.00017422,2]
[371689555,1752388238785,-2287.96,0.00017422,2]
[371689556,1752388238794,-649.42,0.00017422,2]
[371689557,1752388238803,-460.0,0.00017422,2]
[371689558,1752388238813,-460.0,0.00017422,2]
[371689559,1752388238822,-460.0,0.00017422,2]
[371689560,1752388238831,-831.06,0.00017422,2]
[371689561,1752388238839,-399.57462362,0.00017423,2]
[371689562,1752388238849,-460.0,0.00017423,2]
[371689563,1752388238858,-460.0,0.00017423,2]
[371689564,1752388238867,-521.40262785,0.00017423,2]
[371689565,1752388238875,-460.0,0.00017423,2]
[371689566,1752388238885,-460.0,0.00017423,2]
[371689568,1752388238894,-500.0,0.00017423,2]
[371689570,1752388238903,-500.0,0.00017423,2]
[371689572,1752388238912,-460.0,0.00017423,2]
[371689574,1752388238922,-460.0,0.00017423,2]
[371689576,1752388238931,-460.0,0.00017423,2]
[371689578,1752388238942,-460.0,0.00017423,2]
[371689580,1752388238951,-451.37927437,0.00017423,2]
[371689582,1752388238960,-460.0,0.00017423,2]
[371689584,1752388238970,-460.0,0.00017423,2]
[371689586,1752388238979,-460.0,0.00017423,2]
[371689588,1752388238989,-460.0,0.00017423,2]
[371689590,1752388238999,-460.0,0.00017423,2]
[371689592,1752388239009,-460.0,0.00017423,2]
[371689594,1752388239018,-460.0,0.00017423,2]
[371689596,1752388239029,-460.0,0.00017423,2]
[371689598,1752388239038,-460.0,0.00017423,2]
[371689600,1752388239047,-460.0,0.00017423,2]
[371689602,1752388239058,-460.0,0.00017423,2]
[371689604,1752388239068,-460.0,0.00017423,2]
[371689606,1752388239077,-460.0,0.00017423,2]
[371689608,1752388239088,-460.0,0.00017423,2]
[371689610,1752388239102,-460.0,0.00017423,2]
[371689612,1752388239112,-878.38,0.00017423,2]
[371689614,1752388239122,-460.0,0.00017423,2]
[371689616,1752388239132,-558.79,0.00017423,2]
[371689619,1752388239141,-460.0,0.00017423,2]
[371689622,1752388239151,-460.0,0.00017423,2]
[371689624,1752388239161,-469.68,0.00017423,2]
[371689626,1752388239172,-826.81,0.00017423,2]
[371689629,1752388239183,-418.27187552,0.00017423,2]
[371689631,1752388239193,-763.51,0.00017423,2]
[371689633,1752388239203,-460.0,0.00017423,2]
[371689635,1752388239213,-460.0,0.00017423,2]
[371689637,1752388239222,-460.0,0.00017424,2]
[371689639,1752388239231,-460.0,0.00017424,2]
[371689641,1752388239241,-460.0,0.00017424,2]
[371689642,1752388239250,-460.0,0.00017425,2]
[371689644,1752388239260,-151.0,0.00017427,2]
[371689646,1752388239269,-226.744506,0.00017427,2]
[371689648,1752388239279,-226.744506,0.00017427,2]
[371689650,1752388239288,-151.0,0.00017427,2]
[371689652,1752388239298,-211.26608826,0.00017429,2]
[371689654,1752388239307,-152.89545524,0.00017429,2]
[371689656,1752388239318,-500.0,0.00017429,2]
[371689659,1752388239328,-1147.0,0.00017429,2]
[371689660,1752388239337,-500.0,0.00017456,2]
[371689663,1752388239348,-1147.0,0.00017456,2]
[371689665,1752388239357,-500.0,0.00017483,2]
[371689666,1752388239366,-1147.0,0.00017483,2]
[371689668,1752388239376,-238.558168,0.00017489,2]
[371689670,1752388239386,-500.0,0.00017511,2]
[371689673,1752388239395,-1147.0,0.00017511,2]
[371689675,1752388239405,-878.38,0.0001752,2]
[371689677,1752388239414,-500.0,0.00017538,2]
[371689679,1752388239424,-1147.0,0.00017538,2]
[371689681,1752388239433,-500.0,0.00017566,2]
[371689683,1752388239443,-1147.0,0.00017566,2]
[371689685,1752388239453,-238.558168,0.00017571,2]
[371689687,1752388239463,-500.0,0.00017593,2]
[371689689,1752388239472,-1147.0,0.00017593,2]
[371689691,1752388239481,-500.0,0.0001762,2]
[371689693,1752388239491,-1147.0,0.0001762,2]
[371689695,1752388239501,-500.0,0.00017647,2]
[371689697,1752388239511,-500.0,0.00017648,2]
[371689699,1752388239521,-1147.0,0.00017648,2]
[371689701,1752388239531,-238.558168,0.00017653,2]
[371689703,1752388239540,-500.0,0.00017675,2]
[371689705,1752388239549,-1147.0,0.00017675,2]
[371689707,1752388239558,-878.38,0.00017695,2]
[371689708,1752388239568,-460.0,0.00017695,2]
[371689711,1752388239577,-460.0,0.00017695,2]
[371689712,1752388239587,-460.0,0.00017695,2]
[371689714,1752388239596,-809.52,0.00017695,2]
[371689716,1752388239606,-2471.46,0.00017695,2]
[371689718,1752388239615,-460.0,0.00017695,2]
[371689721,1752388239625,-460.0,0.00017695,2]
[371689723,1752388239635,-871.59,0.00017695,2]
[371689725,1752388239646,-1436.67,0.00017695,2]
[371689727,1752388239655,-460.0,0.00017695,2]
[371689729,1752388239665,-460.0,0.00017695,2]
[371689731,1752388239675,-460.0,0.00017695,2]
[371689733,1752388239684,-941.99,0.00017695,2]
[371689735,1752388239694,-795.45,0.00017695,2]
[371689737,1752388239703,-460.0,0.00017695,2]
[371689739,1752388239715,-234.20764597,0.00017695,2]
[371689741,1752388239725,-460.0,0.00017696,2]
[371689743,1752388239734,-460.0,0.00017696,2]
[371689745,1752388239744,-460.0,0.00017696,2]
[371689747,1752388239754,-249.66,0.00017696,2]
[371689749,1752388239765,-460.0,0.00017696,2]
[371689751,1752388239774,-460.0,0.00017696,2]
[371689753,1752388239784,-619.76,0.00017696,2]
[371689755,1752388239794,-460.0,0.00017696,2]
[371689758,1752388239804,-460.0,0.00017696,2]
[371689760,1752388239814,-489.43,0.00017696,2]
[371689762,1752388239824,-1418.37,0.00017696,2]
[371689764,1752388239833,-460.0,0.00017696,2]
[371689766,1752388239842,-460.0,0.00017696,2]
[371689768,1752388239852,-460.0,0.00017696,2]
[371689770,1752388239862,-878.38,0.00017696,2]
[371689773,1752388239871,-460.0,0.00017696,2]
[371689775,1752388239881,-838.66,0.00017696,2]
[371689777,1752388239891,-460.0,0.00017696,2]
[371689779,1752388239900,-460.5,0.00017696,2]
[371689781,1752388239910,-2789.97,0.00017696,2]
[371689783,1752388239919,-460.0,0.00017696,2]
[371689785,1752388239929,-667.51,0.00017696,2]
[371689787,1752388239939,-460.0,0.00017696,2]
[371689789,1752388239949,-2287.96,0.00017696,2]
[371689791,1752388239958,-649.42,0.00017696,2]
[371689793,1752388239968,-460.0,0.00017696,2]
[371689795,1752388239977,-460.0,0.00017696,2]
[371689797,1752388239987,-460.0,0.00017696,2]
[371689799,1752388239996,-831.06,0.00017696,2]
[371689801,1752388240005,-460.0,0.00017697,2]
[371689803,1752388240015,-460.0,0.00017697,2]
[371689805,1752388240024,-500.0,0.00017697,2]
[371689807,1752388240033,-460.0,0.00017697,2]
[371689809,1752388240043,-460.0,0.00017697,2]
[371689811,1752388240052,-460.0,0.00017697,2]
[371689813,1752388240062,-460.0,0.00017697,2]
[371689815,1752388240071,-460.0,0.00017697,2]
[371689817,1752388240080,-460.0,0.00017697,2]
[371689819,1752388240091,-460.0,0.00017697,2]
[371689821,1752388240102,-460.0,0.00017697,2]
[371689823,1752388240112,-460.0,0.00017697,2]
[371689825,1752388240121,-471.76,0.00017697,2]
[371689827,1752388240131,-460.0,0.00017697,2]
[371689829,1752388240140,-460.0,0.00017697,2]
[371689831,1752388240150,-460.0,0.00017697,2]
[371689833,1752388240160,-460.0,0.00017697,2]
[371689835,1752388240169,-460.0,0.00017697,2]
[371689837,1752388240178,-460.0,0.00017697,2]
[371689839,1752388240188,-484.05367746,0.00017697,2]
[371689841,1752388240198,-460.0,0.00017697,2]
[371689843,1752388240208,-460.0,0.00017697,2]
[371689845,1752388240218,-558.79,0.00017697,2]
[371689847,1752388240227,-460.0,0.00017697,2]
[371689849,1752388240236,-460.0,0.00017697,2]
[371689852,1752388240247,-469.68,0.00017697,2]
[371689854,1752388240258,-826.81,0.00017697,2]
[371689855,1752388240267,-763.51,0.00017697,2]
[371689857,1752388240277,-460.0,0.00017697,2]
[371689859,1752388240286,-460.0,0.00017698,2]
[371689861,1752388240295,-460.0,0.00017698,2]
[371689863,1752388240304,-460.0,0.00017698,2]
[371689865,1752388240314,-460.0,0.00017699,2]
[371689867,1752388240323,-500.0,0.00017699,2]
[371689869,1752388240332,-878.38,0.00017699,2]
[371689871,1752388240342,-878.38,0.00017699,2]
[371689873,1752388240351,-878.38,0.00017699,2]
[371689875,1752388240360,-878.38,0.00017699,2]
[371689877,1752388240370,-878.38,0.00017699,2]
[371689880,1752388240380,-500.0,0.00017703,2]
[371689882,1752388240391,-1147.0,0.00017703,2]
[371689884,1752388240400,-500.0,0.0001773,2]
[371689886,1752388240409,-1147.0,0.0001773,2]
[371689887,1752388240418,-238.558168,0.00017735,2]
[371689890,1752388240427,-160.0,0.00017757,2]
[371689892,1752388240437,-1147.0,0.00017757,2]
[371689894,1752388240446,-1343.92098799,0.00017762,2]
[371689896,1752388240457,-1147.0,0.00017785,2]
[371689898,1752388240466,-500.0,0.00017811,2]
[371689899,1752388240476,-1004.85085661,0.00017811,2]
[371689911,1752388240583,-1000.0,0.00017811,2]
[371689913,1752388240593,-1000.0,0.00017811,2]
[371689915,1752388240603,-1147.0,0.00017812,2]
[371689917,1752388240614,-238.558168,0.00017818,2]
[371689919,1752388240624,-1147.0,0.0001784,2]
[371689921,1752388240633,-1147.0,0.00017867,2]
[371689923,1752388240643,-610.5,0.00017872,2]
[371689925,1752388240652,-1147.0,0.00017894,2]
[371689927,1752388240661,-151.0,0.00017899,2]
[371689929,1752388240671,-151.0,0.00017899,2]
[371689931,1752388240681,-238.558168,0.000179,2]
[371689933,1752388240690,-11507.24116996,0.000179,2]
[371689935,1752388240700,-1147.0,0.00017922,2]
[371689937,1752388240709,-1152.0,0.00017949,2]
[371689939,1752388240719,-1000.0,0.00017968,2]
[371689941,1752388240729,-500.0,0.00017968,2]
[371689944,1752388240739,-460.0,0.00017969,2]
[371689945,1752388240748,-460.0,0.00017969,2]
[371689946,1752388240758,-460.0,0.00017969,2]
[371689947,1752388240767,-809.52,0.00017969,2]
[371689948,1752388240776,-2471.46,0.00017969,2]
[371689949,1752388240786,-460.0,0.00017969,2]
[371689950,1752388240796,-460.0,0.00017969,2]
[371689951,1752388240806,-871.59,0.00017969,2]
[371689952,1752388240816,-1436.67,0.00017969,2]
[371689953,1752388240826,-460.0,0.00017969,2]
[371689954,1752388240836,-460.0,0.00017969,2]
[371689955,1752388240846,-460.0,0.00017969,2]
[371689956,1752388240855,-941.99,0.00017969,2]
[371689957,1752388240864,-795.45,0.00017969,2]
[371689958,1752388240874,-460.0,0.00017969,2]
[371689959,1752388240883,-194.49569457,0.0001797,2]
[371689960,1752388240893,-460.0,0.0001797,2]
[371689961,1752388240902,-460.0,0.0001797,2]
[371689962,1752388240912,-460.0,0.0001797,2]
[371689963,1752388240922,-460.0,0.0001797,2]
[371689964,1752388240931,-619.76,0.0001797,2]
[371689965,1752388240941,-460.0,0.0001797,2]
[371689966,1752388240951,-460.0,0.0001797,2]
[371689968,1752388240960,-489.43,0.0001797,2]
[371689970,1752388240969,-1418.37,0.0001797,2]
[371689972,1752388240979,-460.0,0.0001797,2]
[371689974,1752388240988,-460.0,0.0001797,2]
[371689976,1752388240998,-460.0,0.0001797,2]
[371689978,1752388241008,-460.0,0.0001797,2]
[371689980,1752388241018,-838.66,0.0001797,2]
[371689982,1752388241028,-460.0,0.0001797,2]
[371689984,1752388241038,-460.5,0.0001797,2]
[371689986,1752388241047,-2789.97,0.0001797,2]
[371689988,1752388241057,-460.0,0.0001797,2]
[371689990,1752388241068,-667.51,0.0001797,2]
[371689992,1752388241078,-460.0,0.0001797,2]
[371689994,1752388241089,-2287.96,0.0001797,2]
[371689996,1752388241103,-649.42,0.0001797,2]
[371689998,1752388241112,-460.0,0.0001797,2]
[371690000,1752388241122,-448.65584627,0.0001797,2]
[371690002,1752388241132,-831.06,0.0001797,2]
[371690005,1752388241144,-460.0,0.0001797,2]
[371690006,1752388241154,-460.0,0.00017971,2]
[371690008,1752388241164,-460.0,0.00017971,2]
[371690011,1752388241175,-460.0,0.00017971,2]
[371690012,1752388241185,-460.0,0.00017971,2]
[371690014,1752388241195,-460.0,0.00017971,2]
[371690016,1752388241205,-460.0,0.00017971,2]
[371690019,1752388241216,-460.0,0.00017971,2]
[371690021,1752388241226,-460.0,0.00017971,2]
[371690023,1752388241237,-460.0,0.00017971,2]
[371690025,1752388241247,-460.0,0.00017971,2]
[371690027,1752388241257,-460.0,0.00017971,2]
[371690028,1752388241267,-460.0,0.00017971,2]
[371690030,1752388241278,-460.0,0.00017971,2]
[371690032,1752388241288,-460.0,0.00017971,2]
[371690034,1752388241299,-460.0,0.00017971,2]
[371690036,1752388241310,-460.0,0.00017971,2]
[371690039,1752388241320,-460.0,0.00017971,2]
[371690040,1752388241329,-460.0,0.00017971,2]
[371690043,1752388241340,-460.0,0.00017971,2]
[371690045,1752388241350,-558.79,0.00017971,2]
[371690046,1752388241360,-460.0,0.00017971,2]
[371690049,1752388241370,-460.0,0.00017971,2]
[371690051,1752388241380,-469.68,0.00017971,2]
[371690053,1752388241389,-826.81,0.00017971,2]
[371690055,1752388241399,-763.51,0.00017971,2]
[371690057,1752388241409,-180.7022225,0.00017971,2]
[371690059,1752388241419,-460.0,0.00017972,2]
[371690061,1752388241428,-460.0,0.00017972,2]
[371690063,1752388241438,-460.0,0.00017973,2]
[371690065,1752388241447,-151.0,0.00017975,2]
[371690067,1752388241457,-238.558168,0.00017982,2]
[371690069,1752388241467,-151.0,0.00018049,2]
[371690071,1752388241476,-226.744506,0.00018049,2]
[371690073,1752388241486,-226.744506,0.00018049,2]
[371690075,1752388241495,-151.0,0.00018049,2]
[371690076,1752388241504,-207.4,0.00018049,2]
[371690078,1752388241513,-151.0,0.00018049,2]
[371690080,1752388241523,-151.0,0.00018049,2]
[371690082,1752388241532,-151.0,0.00018049,2]
[371690084,1752388241541,-151.0,0.00018049,2]
[371690087,1752388241551,-151.0,0.00018049,2]
[371690089,1752388241560,-23081.11399762,0.00018049,2]
[371690100,1752388241664,-1918.88600238,0.00018049,2]
[371690103,1752388241674,-238.558168,0.00018064,2]
[371690105,1752388241684,-420.0,0.00018136,2]
[371690107,1752388241694,-238.558168,0.00018146,2]
[371690109,1752388241704,-11507.2411699,0.00018176,2]
[371690111,1752388241713,-347.0,0.00018227,2]
[371690113,1752388241723,-238.558168,0.00018228,2]
[371690115,1752388241733,-1090.42,0.00018234,3]
[371690117,1752388241742,-545.22,0.00018234,3]
[371690119,1752388241752,-809.52,0.00018243,2]
[371690121,1752388241761,-2471.46,0.00018243,2]
[371690123,1752388241771,-460.0,0.00018243,2]
[371690125,1752388241780,-460.0,0.00018243,2]
[371690127,1752388241790,-871.59,0.00018243,2]
[371690129,1752388241799,-1436.67,0.00018243,2]
[371690131,1752388241809,-460.0,0.00018243,2]
[371690133,1752388241819,-460.0,0.00018243,2]
[371690135,1752388241829,-509.06170389,0.00018243,2]
[371690137,1752388241838,-941.99,0.00018243,2]
[371690139,1752388241848,-795.45,0.00018243,2]
[371690141,1752388241858,-460.0,0.00018243,2]
[371690143,1752388241868,-460.0,0.00018244,2]
[371690145,1752388241878,-460.0,0.00018244,2]
[371690147,1752388241887,-469.56,0.00018244,2]
[371690149,1752388241896,-460.0,0.00018244,2]
[371690151,1752388241906,-619.76,0.00018244,2]
[371690153,1752388241915,-489.43,0.00018244,2]
[371690155,1752388241924,-1418.37,0.00018244,2]
[371690158,1752388241934,-460.0,0.00018244,2]
[371690160,1752388241945,-460.0,0.00018244,2]
[371690162,1752388241954,-460.0,0.00018244,2]
[371690164,1752388241964,-838.66,0.00018244,2]
[371690166,1752388241975,-460.0,0.00018244,2]
[371690168,1752388241984,-460.5,0.00018244,2]
[371690170,1752388241993,-2789.97,0.00018244,2]
[371690172,1752388242002,-460.0,0.00018244,2]
[371690174,1752388242012,-151.0,0.00018244,2]
[371690176,1752388242021,-667.51,0.00018244,2]
[371690178,1752388242030,-460.0,0.00018244,2]
[371690180,1752388242040,-2287.96,0.00018244,2]
[371690182,1752388242050,-649.42,0.00018244,2]
[371690184,1752388242059,-460.0,0.00018244,2]
[371690185,1752388242069,-151.0,0.00018244,2]
[371690188,1752388242079,-831.06,0.00018244,2]
[371690189,1752388242088,-460.0,0.00018244,2]
[371690192,1752388242099,-266.079866,0.00018244,2]
[371690193,1752388242108,-460.0,0.00018245,2]
[371690196,1752388242118,-460.0,0.00018245,2]
[371690197,1752388242127,-460.0,0.00018245,2]
[371690199,1752388242137,-460.0,0.00018245,2]
[371690202,1752388242149,-460.0,0.00018245,2]
[371690204,1752388242158,-460.0,0.00018245,2]
[371690206,1752388242168,-460.0,0.00018245,2]
[371690208,1752388242177,-460.0,0.00018245,2]
[371690210,1752388242186,-460.0,0.00018245,2]
[371690212,1752388242196,-460.0,0.00018245,2]
[371690214,1752388242205,-460.0,0.00018245,2]
[371690216,1752388242215,-578.5419508,0.00018245,2]
[371690218,1752388242225,-460.0,0.00018245,2]
[371690220,1752388242235,-460.0,0.00018245,2]
[371690222,1752388242244,-460.0,0.00018245,2]
[371690224,1752388242253,-460.0,0.00018245,2]
[371690226,1752388242263,-460.0,0.00018245,2]
[371690228,1752388242273,-460.0,0.00018245,2]
[371690230,1752388242283,-558.79,0.00018245,2]
[371690232,1752388242293,-460.0,0.00018245,2]
[371690234,1752388242303,-585.81670603,0.00018245,2]
[371690236,1752388242313,-469.68,0.00018245,2]
[371690238,1752388242322,-826.81,0.00018245,2]
[371690240,1752388242332,-763.51,0.00018245,2]
[371690242,1752388242342,-460.0,0.00018246,2]
[371690244,1752388242352,-460.0,0.00018246,2]
[371690246,1752388242363,-460.0,0.00018247,2]
[371690248,1752388242372,-238.558168,0.0001831,2]
[371690249,1752388242381,-502.69961797,0.00018359,2]
[371690251,1752388242391,-1500.0,0.00018359,2]
[371690253,1752388242402,-238.558168,0.00018392,2]
[371690256,1752388242411,-380.54084831,0.00018452,2]
[371690258,1752388242429,-218.05592461,0.00016873,2]
[371690260,1752388242439,-155.2931787,0.00018452,2]
[371690263,1752388242451,-4918.89651529,0.00018452,2]
[371690325,1752388243100,-569.98847468,0.000165,2]
[371690326,1752388243110,-614.51119848,0.00018452,2]
[371690327,1752388243122,-4003.46792881,0.00018452,2]
[371690328,1752388243143,-1434.53150031,0.00018452,2]
[371690329,1752388243152,-151.0,0.00018452,2]
[371690330,1752388243163,-238.558168,0.00018474,2]
[371690331,1752388243177,-1343.92098799,0.00018476,2]
[371690332,1752388243187,-160.0,0.00018516,2]
[371690333,1752388243197,-160.0,0.00018516,2]
[371690334,1752388243207,-160.0,0.00018516,2]
[371690335,1752388243216,-215.42595214,0.00018516,2]
[371690336,1752388243227,-838.53376533,0.00018516,2]
[371690337,1752388243236,-230.68503973,0.00018516,2]
[371690338,1752388243245,-160.0,0.00018516,2]
[371690339,1752388243256,-809.52,0.00018517,2]
[371690340,1752388243267,-2471.46,0.00018517,2]
[371690341,1752388243277,-460.0,0.00018517,2]
[371690343,1752388243286,-871.59,0.00018517,2]
[371690345,1752388243296,-1436.67,0.00018517,2]
[371690347,1752388243307,-460.0,0.00018517,2]
[371690349,1752388243317,-941.99,0.00018517,2]
[371690351,1752388243327,-795.45,0.00018517,2]
[371690353,1752388243336,-460.0,0.00018517,2]
[371690354,1752388243346,-151.0,0.00018518,2]
[371690355,1752388243358,-460.0,0.00018518,2]
[371690356,1752388243367,-151.0,0.00018518,2]
[371690357,1752388243377,-460.0,0.00018518,2]
[371690358,1752388243386,-460.0,0.00018518,2]
[371690359,1752388243396,-619.76,0.00018518,2]
[371690360,1752388243405,-151.0,0.00018518,2]
[371690361,1752388243414,-489.43,0.00018518,2]
[371690362,1752388243423,-1418.37,0.00018518,2]
[371690364,1752388243433,-460.0,0.00018518,2]
[371690365,1752388243443,-460.0,0.00018518,2]
[371690366,1752388243452,-151.0,0.00018518,2]
[371690367,1752388243463,-151.0,0.00018518,2]
[371690368,1752388243473,-460.0,0.00018518,2]
[371690369,1752388243483,-838.66,0.00018518,2]
[371690370,1752388243494,-460.0,0.00018518,2]
[371690371,1752388243504,-460.5,0.00018518,2]
[371690372,1752388243514,-2789.97,0.00018518,2]
[371690373,1752388243524,-460.0,0.00018518,2]
[371690374,1752388243534,-667.51,0.00018518,2]
[371690376,1752388243544,-460.0,0.00018518,2]
[371690378,1752388243554,-2287.96,0.00018518,2]
[371690380,1752388243565,-649.42,0.00018518,2]
[371690382,1752388243575,-460.0,0.00018518,2]
[371690383,1752388243584,-831.06,0.00018518,2]
[371690384,1752388243594,-460.0,0.00018518,2]
[371690385,1752388243605,-460.0,0.00018519,2]
[371690386,1752388243616,-460.0,0.00018519,2]
[371690387,1752388243628,-460.0,0.00018519,2]
[371690388,1752388243639,-460.0,0.00018519,2]
[371690389,1752388243648,-270.09972919,0.00018519,2]
[371690390,1752388243658,-460.0,0.00018519,2]
[371690391,1752388243669,-460.0,0.00018519,2]
[371690392,1752388243678,-460.0,0.00018519,2]
[371690393,1752388243687,-460.0,0.00018519,2]
[371690394,1752388243697,-460.0,0.00018519,2]
[371690395,1752388243707,-460.0,0.00018519,2]
[371690396,1752388243716,-460.0,0.00018519,2]
[371690397,1752388243726,-460.0,0.00018519,2]
[371690398,1752388243735,-460.0,0.00018519,2]
[371690399,1752388243746,-558.79,0.00018519,2]
[371690400,1752388243755,-469.68,0.00018519,2]
[371690401,1752388243765,-826.81,0.00018519,2]